{"text_format":"3","workbook":"xlsx","n_sheets":5,"sheets":["法人","施設","施設1","サービス名・加算名","DB"],"not_rendered":{"macros":1,"defined_names":88},"read":"whole","date_system":"1900"}

{"sheet":"法人","index":0,"n_rows":631,"n_cols":27,"rows_kept":631,"merged":[[29,1,29,14],[30,1,30,14],[33,1,33,5],[33,6,33,7],[33,8,33,14],[34,1,34,5],[34,6,34,14],[35,1,35,2],[35,3,35,5],[35,6,35,14],[36,1,36,5],[36,6,37,14],[37,1,37,5],[38,1,38,5],[38,6,38,14],[39,1,39,5],[39,6,39,14],[40,1,40,5],[40,6,40,14],[41,1,41,5],[41,6,41,14],[42,1,42,5],[42,6,42,14],[43,1,43,5],[43,6,43,14],[44,1,44,5],[44,6,44,14],[45,1,45,5],[45,6,45,14],[46,1,46,5],[46,6,46,14],[47,1,47,5],[47,6,47,14],[48,1,48,5],[48,6,48,14],[49,1,49,5],[49,6,49,14],[50,1,50,5],[50,6,50,14],[51,1,51,5],[51,6,51,14],[52,1,52,5],[52,6,52,14],[53,1,53,5],[53,6,53,14],[54,1,54,5],[54,6,54,14],[55,1,55,5],[55,6,55,14],[56,1,56,5],[56,6,56,14],[57,1,57,5],[57,6,57,14],[62,1,62,15],[72,1,72,9],[73,1,73,9],[74,1,74,9],[75,1,75,9],[76,1,76,9],[80,1,80,15],[88,1,88,5],[88,6,88,8],[88,9,88,11],[88,12,88,14],[89,1,89,5],[89,6,89,7],[89,9,89,10],[89,12,89,13],[90,1,90,5],[90,6,90,7],[90,9,90,10],[90,12,90,13],[91,1,91,5],[91,6,91,7],[91,9,91,10],[91,12,91,13],[92,1,92,5],[92,6,92,7],[92,9,92,10],[92,12,92,13],[93,1,93,5],[93,6,93,7],[93,9,93,10],[93,12,93,13],[96,1,96,5],[96,6,96,8],[96,9,96,11],[96,12,96,14],[97,2,97,4],[97,6,97,7],[97,9,97,10],[97,12,97,13],[98,2,98,4],[98,6,98,7],[98,9,98,10],[98,12,98,13],[99,2,99,4],[99,6,99,7],[99,9,99,10],[99,12,99,13],[103,1,103,5],[103,6,103,8],[103,9,103,11],[103,12,103,14],[104,1,104,5],[104,6,104,7],[104,9,104,10],[104,12,104,13],[105,1,105,5],[105,6,105,7],[105,9,105,10],[105,12,105,13],[106,1,106,5],[106,6,106,7],[106,9,106,10],[106,12,106,13],[107,1,107,5],[107,6,107,7],[107,9,107,10],[107,12,107,13],[108,1,108,5],[108,6,108,7],[108,9,108,10],[108,12,108,13],[111,1,111,5],[111,6,111,8],[111,9,111,11],[111,12,111,14],[112,2,112,4],[112,6,112,7],[112,9,112,10],[112,12,112,13],[113,2,113,4],[113,6,113,7],[113,9,113,10],[113,12,113,13],[114,2,114,4],[114,6,114,7],[114,9,114,10],[114,12,114,13],[117,1,117,15],[126,1,126,9],[127,1,127,9],[128,1,128,9],[132,1,132,9],[133,1,133,9],[134,1,134,9],[138,1,138,15],[144,1,144,9],[145,1,145,9],[146,1,146,9],[147,1,147,9],[148,1,148,9],[152,1,152,9],[153,1,153,9],[154,1,154,9],[155,1,155,9],[156,1,156,9],[160,1,160,4],[161,1,161,4],[162,1,162,4],[163,1,163,4],[168,1,168,14],[169,1,169,14],[170,1,170,14],[171,1,171,14],[172,1,172,14],[173,1,173,14],[174,1,174,14],[175,1,175,14],[176,1,176,14],[177,1,177,14],[178,1,178,14],[179,1,179,14],[180,1,180,14],[181,1,181,14],[182,1,182,14],[183,2,183,14],[184,1,184,14],[185,2,185,14],[187,1,187,14],[191,1,191,15],[196,1,196,9],[197,1,197,9],[198,1,198,9],[203,1,203,9],[204,1,204,9],[205,1,205,9],[214,1,214,14],[215,1,215,14],[216,1,216,14],[217,1,217,14],[218,2,218,13],[219,1,219,14],[220,1,220,14],[221,1,221,14],[222,1,222,14],[223,1,223,14],[224,1,224,14],[225,1,225,14],[226,2,226,13],[227,1,227,14],[230,1,230,15],[236,1,236,14],[237,1,237,14],[238,1,238,14],[239,1,239,14],[240,2,240,13],[241,1,241,14],[242,1,242,14],[243,1,243,14],[244,1,244,14],[245,1,245,14],[246,2,246,13],[247,1,247,14],[248,1,248,14],[249,1,249,14],[250,1,250,14],[251,1,251,14],[252,1,252,14],[253,1,253,14],[254,2,254,13],[255,1,255,14],[260,1,260,4],[261,1,261,4],[265,1,265,15],[269,1,269,15],[275,1,275,14],[276,1,276,14],[277,1,277,14],[278,1,278,14],[279,1,279,14],[280,2,280,13],[281,1,281,14],[282,1,282,14],[283,1,283,14],[284,1,284,14],[285,1,285,14],[286,1,286,14],[287,2,287,4],[287,5,287,14],[288,1,288,14],[289,1,289,14],[290,1,290,14],[291,1,291,14],[292,1,292,14],[293,1,293,14],[294,1,294,14],[295,1,295,14],[296,2,296,4],[296,5,296,14],[297,1,297,14],[298,2,298,13],[307,1,307,9],[308,1,308,9],[309,1,309,9],[315,1,315,9],[316,1,316,9],[317,1,317,9],[318,1,318,9],[321,1,321,11],[325,1,325,9],[326,1,326,9],[327,1,327,9],[328,2,328,9],[335,1,335,9],[336,1,336,9],[337,1,337,9],[338,1,338,9],[339,1,339,9],[340,1,340,2],[340,3,340,9],[343,1,343,15],[349,1,349,9],[350,1,350,9],[351,1,351,9],[352,2,352,9],[353,1,353,9],[354,2,354,9],[361,1,362,5],[361,6,362,6],[361,7,361,16],[362,7,362,8],[362,10,362,11],[362,13,362,14],[363,1,363,5],[363,7,363,8],[363,10,363,11],[363,13,363,14],[364,1,364,5],[364,7,364,8],[364,10,364,11],[364,13,364,14],[365,1,365,5],[365,7,365,8],[365,10,365,11],[365,13,365,14],[366,1,366,5],[366,7,366,8],[366,10,366,11],[366,13,366,14],[367,1,367,5],[367,7,367,8],[367,10,367,11],[367,13,367,14],[368,1,368,5],[368,7,368,8],[368,10,368,11],[368,13,368,14],[369,1,369,5],[369,7,369,8],[369,10,369,11],[369,13,369,14],[370,1,370,5],[370,7,370,8],[370,10,370,11],[370,13,370,14],[371,1,371,5],[371,7,371,8],[371,10,371,11],[371,13,371,14],[375,1,375,15],[376,1,376,15],[377,1,377,15],[380,1,380,12],[390,1,390,5],[390,6,390,8],[390,9,390,11],[390,12,390,14],[390,15,390,16],[391,1,391,5],[391,6,391,8],[391,9,391,11],[391,12,391,14],[391,15,391,16],[392,1,392,5],[392,6,392,8],[392,9,392,11],[392,12,392,14],[392,15,392,16],[393,1,393,5],[393,6,393,8],[393,9,393,11],[393,12,393,14],[393,15,393,16],[394,1,394,5],[394,6,394,8],[394,9,394,11],[394,12,394,14],[394,15,394,16],[395,1,395,5],[395,6,395,8],[395,9,395,11],[395,12,395,14],[395,15,395,16],[396,1,396,5],[396,6,396,8],[396,9,396,11],[396,12,396,14],[396,15,396,16],[397,1,397,5],[397,6,397,8],[397,9,397,11],[397,12,397,14],[397,15,397,16],[398,2,398,4],[398,6,398,8],[398,9,398,11],[398,12,398,14],[398,15,398,16],[399,2,399,4],[399,6,399,8],[399,9,399,11],[399,12,399,14],[399,15,399,16],[400,2,400,4],[400,6,400,8],[400,9,400,11],[400,12,400,14],[400,15,400,16],[404,1,404,9],[405,1,405,9],[406,1,406,9],[407,1,407,9],[408,1,408,9],[409,1,409,9],[410,2,410,8],[414,1,414,9],[415,1,415,9],[416,1,416,9],[417,1,417,9],[418,1,418,9],[419,1,419,9],[420,1,420,9],[421,1,421,9],[422,2,422,8],[426,1,426,9],[427,1,427,9],[428,1,428,9],[429,2,429,8],[434,1,434,4],[434,6,434,8],[434,9,434,11],[434,12,434,14],[434,15,434,16],[435,1,435,5],[435,6,435,8],[435,9,435,11],[435,12,435,14],[435,15,435,16],[436,1,436,5],[436,6,436,8],[436,9,436,11],[436,12,436,14],[436,15,436,16],[437,1,437,5],[437,6,437,8],[437,9,437,11],[437,12,437,14],[437,15,437,16],[438,1,438,5],[438,6,438,8],[438,9,438,11],[438,12,438,14],[438,15,438,16],[439,2,439,4],[439,6,439,8],[439,9,439,11],[439,12,439,14],[439,15,439,16],[440,2,440,4],[440,6,440,8],[440,9,440,11],[440,12,440,14],[440,15,440,16],[441,2,441,4],[441,6,441,8],[441,9,441,11],[441,12,441,14],[441,15,441,16],[446,1,446,9],[447,1,447,9],[448,1,448,9],[449,1,449,9],[450,2,450,8],[454,1,454,9],[455,1,455,9],[456,1,456,9],[457,1,457,9],[458,1,458,9],[459,1,459,9],[460,1,460,9],[461,2,461,8],[465,1,465,9],[466,1,466,9],[467,1,467,9],[468,2,468,8],[476,1,476,9],[477,1,477,9],[478,1,478,9],[479,1,479,2],[479,3,479,9],[484,1,484,9],[485,1,485,9],[486,1,486,9],[487,1,487,2],[487,3,487,9],[492,1,492,9],[493,1,493,9],[494,1,494,9],[495,1,495,9],[496,1,496,2],[496,3,496,9],[505,1,505,9],[506,1,506,9],[510,1,510,15],[514,1,514,15],[517,1,517,14],[530,1,530,14],[531,1,531,14],[532,1,532,14],[533,1,533,14],[534,1,534,14],[535,1,535,14],[536,2,536,14],[537,1,537,14],[541,1,541,14],[542,2,542,3],[542,4,542,14],[543,1,543,14],[544,1,544,14],[545,1,545,14],[546,2,546,13],[558,1,558,14],[559,1,559,14],[560,1,560,14],[561,1,561,14],[562,1,562,14],[563,1,563,14],[564,1,564,14],[565,2,565,14],[566,1,566,14],[567,2,567,14],[568,1,568,14],[573,1,573,14],[574,2,574,3],[574,4,574,14],[575,1,575,14],[576,1,576,14],[577,1,577,14],[578,2,578,13],[584,1,584,15],[588,1,588,14],[594,1,594,15],[601,1,601,9],[602,2,602,8],[603,1,603,9],[604,1,604,9],[610,1,610,9],[611,1,611,9],[612,1,612,9],[613,1,613,9],[619,1,619,14],[620,1,620,14],[621,1,621,14],[622,1,622,14],[623,1,623,14],[624,1,624,14],[625,1,625,14],[631,1,631,15]]}
[]
[]
[null,"調査項目　柱立て"]
[null,"基本情報（法人情報）"]
[null,"  1. 令和3年度障害福祉サービス等報酬改定の評価"]
[null,"  2. 物価の高騰による影響、課題（減収の状況）"]
[null,"  3. 新型コロナによる影響、課題"]
[null,"  4. 福祉人材の確保"]
[null,"令和3年度の新卒・中途職員の採用状況"]
[null,"外国介護人材にかかる制度の活用状況"]
[null,"  5. 処遇改善→持ち出しの有無/対象職種"]
[null,"各種処遇改善の算定状況、賃金項目"]
[null,"特定処遇改善加算およびベースアップ等加算"]
[null,"  6. 多様なニーズへの対応について"]
[null,"→意思決定ガイドライン、実践されている取組"]
[null,"→虐待防止研修の実施の有無"]
[null,"  7. 高齢障害者に対する支援に関する課題"]
[null,"  8. 共生型サービスの実施状況"]
[null,"  9. ICT/ロボット等の活用状況"]
[null,"10. 感染症対策・災害支援の取組"]
[null,"BCPの策定状況など"]
[null,"11. 地域区分に関する課題、意見（困難を生じている事例）"]
[null,"12. 食事提供体制加算・送迎加算の状況"]
[null,"13. 事業展開"]
[null,"施設情報"]
[null,"収支の状況、収支の変化、今後のサービス増減差額の見通し、"]
[null,"職員の賃金水準、算定したいができない加算について"]
[]
[]
[null,"全国社会福祉法人経営者協議会　障害福祉事業経営委員会"]
[null,"「次期障害サービス等報酬改定に向けた意識調査」"]
[]
[null,"《基本情報》"]
[null," 法人名",{"$nulls":4},"社会福祉法人"]
[null," 担当者氏名"]
[null," 現況報告書の法人番号",null,"［法人番号をWebで調べる］"]
[null," 経営する障害者支援施設の数"]
[null," *本調査では、障害者支援施設を中心にお聞きします。"]
[null," 電話番号（※）"]
[null," E-mailアドレス（※）"]
[null," 法人内で実施しているサービス"]
[null,"障害者支援施設",{"$nulls":4},"重度障害者等包括支援"]
[null,"⇒昼間実施サービス",{"$nulls":4},"計画相談支援"]
[null,"生活介護",{"$nulls":4},"地域相談支援（地域移行支援）",{"$nulls":14},{"$f":"COUNTIF($S$44:$S$49,\"TRUE\")","v":0},{"$f":"COUNTIF(S50:S55,\"TRUE\")+COUNTIF(T42:T55,\"TRUE\")","v":0}]
[null,"自立訓練（機能訓練）",{"$nulls":4},"地域相談支援（地域定着支援）"]
[null,"自立訓練（生活訓練）",{"$nulls":4},"短期入所"]
[null,"就労移行支援",{"$nulls":4},"共同生活援助"]
[null,"就労継続支援（A型）",{"$nulls":4},"自立訓練（機能訓練）"]
[null,"就労継続支援（B型）",{"$nulls":4},"自立訓練（生活訓練）"]
[null,"居宅介護",{"$nulls":4},"宿泊型自立訓練"]
[null,"重度訪問介護",{"$nulls":4},"就労移行支援"]
[null,"同行援護",{"$nulls":4},"就労継続支援（A型）"]
[null,"行動援護",{"$nulls":4},"就労継続支援（B型）"]
[null,"療養介護",{"$nulls":4},"自立生活援助"]
[null,"生活介護",{"$nulls":4},"就労定着支援"]
[null,"【障害児通所支援等】",{"$nulls":4},"放課後等デイサービス",{"$nulls":14},{"$f":"COUNTIF(S56:T58,\"TRUE\")","v":0}]
[null,"児童発達支援",{"$nulls":4},"保育所等訪問支援"]
[null,"居宅訪問型児童発達支援",{"$nulls":4},"障害児相談支援"]
[null,"※今後やりとりをする連絡先なので、正確に入力して下さい"]
[]
[]
[]
[null,"本調査は、次期障害福祉サービス等報酬改定（令和6年度）を見据え、障害者支援施設を経営する社会福祉法人が\n自律的な法人経営を実現できるよう、経営層の方々の介護報酬改定等に対する認識、意向等を集約することを目的\nとしています。本調査にご協力いただくにあたり、下記の設問について貴法人の経営に携わる方に回答いただきます\nよう、よろしくお願い申しあげます。"]
[]
[]
[]
[null,"《意識調査》"]
[]
["【カテゴリ① 令和3年度障害福祉サービス等報酬改定】"]
[]
[null,"令和3年度障害福祉サービス等報酬改定に対する評価について、教えてください。"]
[]
[null,"とても評価できる"]
[null,"やや評価できる"]
[null,"どちらともいえない"]
[null,"やや評価できない"]
[null,"まったく評価できない"]
[]
[]
[null,"その理由"]
[]
[]
[]
["【カテゴリ② 物価の高騰による影響や課題】"]
[]
[null,"①物価高騰に伴う各費用・支出（勘定科目ごと）の状況についてお伺いします。"]
[]
[null,"〇令和3年 4月、9月、12月にかかった各費用・支出"]
[null,"費目：勘定科目",{"$nulls":4},"令和3年4月 ",null,null,"令和3年9月",null,null,"令和3年12月"]
[null," ①光熱費（電気・ガス）：水道光熱費支出",{"$nulls":6},"円",null,null,"円",null,null,"円"]
[null," ②燃料費（灯油、重油）：燃料費支出",{"$nulls":6},"円",null,null,"円",null,null,"円"]
[null," ③燃料費（ガソリン・軽油）：車輛費支出",{"$nulls":6},"円",null,null,"円",null,null,"円"]
[null," ④給食費・食材費：給食費支出（食材及び食品）",{"$nulls":6},"円",null,null,"円",null,null,"円"]
[null," ⑤給食費（委託費）：業務委託費支出（給食）",{"$nulls":6},"円",null,null,"円",null,null,"円"]
[null,"そのほか、今般の物価高騰に伴い影響が大きい支出"]
[]
[null,"費目：勘定科目",{"$nulls":4},"令和3年4月",null,null,"令和3年9月",null,null,"令和3年12月"]
[null," 具体的な費目　　（",{"$nulls":3},"）",null,null,"円",null,null,"円",null,null,"円"]
[null," 具体的な費目　　（",{"$nulls":3},"）",null,null,"円",null,null,"円",null,null,"円"]
[null," 具体的な費目　　（",{"$nulls":3},"）",null,null,"円",null,null,"円",null,null,"円"]
[]
[]
[null,"〇令和4年 4月、9月、12月にかかった各費用・支出"]
[null,"費目：勘定科目",{"$nulls":4},"令和4年4月 ",null,null,"令和4年9月",null,null,"令和4年12月"]
[null," ⑥光熱費（電気・ガス）：水道光熱費支出",{"$nulls":6},"円",null,null,"円",null,null,"円"]
[null," ⑦燃料費（灯油、重油）：燃料費支出",{"$nulls":6},"円",null,null,"円",null,null,"円"]
[null," ⑧燃料費（ガソリン・軽油）：車輛費支出",{"$nulls":6},"円",null,null,"円",null,null,"円"]
[null," ⑨給食費・食材費：給食費支出（食材及び食品）",{"$nulls":6},"円",null,null,"円",null,null,"円"]
[null," ⑩給食費（委託費）：業務委託費支出（給食）",{"$nulls":6},"円",null,null,"円",null,null,"円"]
[null,"　そのほか、今般の物価高騰に伴い影響が大きい支出"]
[]
[null,"費目：勘定科目",{"$nulls":4},"令和4年4月 ",null,null,"令和4年9月",null,null,"令和4年12月"]
[null," 具体的な費目　　（",{"$nulls":3},"）",null,null,"円",null,null,"円",null,null,"円"]
[null," 具体的な費目　　（",{"$nulls":3},"）",null,null,"円",null,null,"円",null,null,"円"]
[null," 具体的な費目　　（",{"$nulls":3},"）",null,null,"円",null,null,"円",null,null,"円"]
[]
[null,"②物価高騰による事業経営や利用者等への影響、課題や意見等があれば教えてください。"]
[]
[]
[]
[]
[]
["【カテゴリ③ 新型コロナウイルスによる影響や課題】"]
[]
[null,"①自法人が経営する障害者支援施設等、居住支援サービスにおいて、利用者が新型コロナウイルスに感染した際に"]
[null,"施設内療養を実施されましたか。"]
[null,"利用者が新型コロナウイルスに感染し、施設内療養を実施した。"]
[null,"利用者が新型コロナウイルスに感染し、全員入院した。"]
[null,"利用者の新型コロナウイルス感染はなかった。"]
[]
[null,"②自法人が経営する障害者支援施設等、居住支援サービスにおいて、クラスターが発生（感染者が5名以上）した"]
[null,"事例はありましたか。"]
[null,"クラスターが発生した（5名以上の利用者が同時期に感染）"]
[null,"感染者はいたが、クラスターは発生しなかった（5名以上の感染はなかった）"]
[null,"新型コロナに感染した利用者がはいなかった"]
[]
[null,"③新型コロナ対応における報酬上の基準の特例について、継続すべき事項や、さらに弾力化すべき事項等があれば"]
[null,"教えてください。"]
[]
[]
[]
["【カテゴリ④ 障害福祉人材の確保】※非常勤職員等すべての雇用形態について"]
[]
[null,"①  貴法人が経営する障害者支援施設における令和3年度の新卒採用の状況について、教えてください。"]
[null,"採用計画数（採用希望数）に十分に達する人員を採用することができた"]
[null,"採用計画数（採用希望数）に近い人員を採用することができた"]
[null,"採用計画数（採用希望数）より少し足りない採用数であった"]
[null,"採用計画数（採用希望数）にまったく届かない採用数であった"]
[null,"採用予定がなかった"]
[]
[]
[null,"②  貴法人が経営する障害者支援施設における令和3年度の中途採用の状況について、教えてください。"]
[null,"採用計画数（採用希望数）に十分に達する人員を採用することができた"]
[null,"採用計画数（採用希望数）に近い人員を採用することができた"]
[null,"採用計画数（採用希望数）より少し足りない採用数であった"]
[null,"採用計画数（採用希望数）にまったく届かない採用数であった"]
[null,"採用予定がなかった"]
[]
[null,"③  貴法人が経営する障害者支援施設における専門職の配置状況について、貴法人の直接支援の常勤職員のち、"]
[null,"有資格者（社会福祉士・精神保健福祉士、介護福祉士、公認心理師）の割合を教えてください。"]
[null,"50％以上"]
[null,"35～50％以上"]
[null,"26～35％以上"]
[null,"25％以下"]
[]
[]
[]
[null,"④  外国人介護人材に係る制度の活用状況について、教えてください。"]
[null,"活用している"]
[null,"EPA"]
[null,"技能実習"]
[null,"留学"]
[null,"在留資格「介護」"]
[null,"特定技能"]
[null,"その他"]
[null,"現時点で活用していないが、今後の活用に向け現在具体的な検討を進めている"]
[null,"EPA"]
[null,"技能実習"]
[null,"留学"]
[null,"在留資格「介護」"]
[null,"特定技能"]
[null,"その他"]
[null,"活用に向けて検討したが、活用しないことにした"]
[null,"　　　その理由："]
[null,"活用を検討していない"]
[null,"　　　その理由："]
[]
[null,"「外国人材の受入れ・共生のための総合的対応策」では、外国人材を適正に受入、共生社会の実現を図ることにより、日本人と外国人が安心して安全に暮らせる社会の実現に寄与するという目的を達成するため、外国人材の受入れ・共生に関して、目指すべき方向性が示されています。"]
[]
[null,"日本の障害福祉現場において外国人介護職員を定着させるために制度的にサポートすべきと考えられる事項が"]
[null,"あれば教えてください。"]
[]
[]
[]
[]
[null,"⑤  貴法人が経営する障害者支援施設に65歳以上の高齢者の雇用状況について教えてください。"]
[null,"積極的に雇用"]
[null,"必要に応じてバランスを見ながら雇用"]
[null,"雇用していない"]
[]
[]
[]
[null,"⑥  貴法人が経営する障害者支援施設における障害者の雇用状況について教えてください。"]
[null,"積極的に雇用"]
[null,"必要に応じてバランスを見ながら雇用"]
[null,"雇用していない"]
[]
[]
[]
["【カテゴリ⑤ 処遇改善加算】"]
[]
[null,"1．福祉・介護職員処遇改善加算（現行の加算）について"]
[]
[null,"貴法人が経営する障害者支援施設における本加算の算定および賃金改善を行っている賃金項目を教えてください。"]
[null,"福祉・介護職員処遇改善加算（現行の加算）を算定"]
[null,"基本給（ベースアップ、定期昇給）において賃金改善を実施"]
[null,"諸手当において賃金改善を実施"]
[null,"賞与（一時金）において賃金改善を実施"]
[null,"その他（",{"$nulls":12},")"]
[null,"賃金バランスを担保するために、法人・事業所の持ち出しで賃金改善を実施していますか"]
[null,"同加算を算定している事業所の職員に対して実施"]
[null,"同加算を算定していない事業所の職員に対して実施"]
[null,"実施していない"]
[null,"法人・事業所が持ち出しで実施する賃金改善の対象となる職種を教えてください（主な3つを選択してください）"]
[null,"福祉・介護職員　　　　　　　　　生活支援員　　　　　看護職員　　　　　機能訓練指導員"]
[null,"サービス管理責任者　　　　　　事務員　　　　　　　　栄養士　　　　　　調理員　　　　　　　医師"]
[null,"その他（",{"$nulls":12},")"]
[null,"福祉・介護職員処遇改善加算（現行の加算）を算定していない",{"$nulls":17},{"$f":"COUNTIF(S225:W227,\"TRUE\")","v":0}]
[]
[null,"仕組みそのものに対する問題意識があれば、教えてください。"]
[]
[]
[]
[null,"2．福祉・介護職員等特定処遇改善加算について"]
[]
[null,"①貴法人が経営する障害者支援施設における本加算の算定および賃金改善を行っている賃金項目を教えてください。"]
[null,"福祉・介護職員等特定処遇改善加算を算定予定"]
[null,"基本給（ベースアップ、定期昇給）において賃金改善を実施"]
[null,"諸手当において賃金改善を実施"]
[null,"賞与（一時金）において賃金改善を実施"]
[null,"その他（",{"$nulls":12},")"]
[null,"本加算の配分方法（予定）について教えてください"]
[null,"Aグループ「経験・技能のある障害福祉人材」のみに重点的に配分"]
[null,"Aグループ「経験・技能のある障害福祉人材」およびBグループ「他の障害福祉人材」に配分"]
[null,"Aグループ「経験・技能のある障害福祉人材」およびBグループ「他の障害福祉人材」およびCグループ「その他の職種」に配分"]
[null,"特別な事情によりAグループ「経験・技能のある障害福祉人材」を設定せず配分"]
[null,"その他（",{"$nulls":12},")"]
[null,"賃金バランスを担保するために、法人・事業所の持ち出しで賃金改善を実施していますか"]
[null,"同加算を算定している事業所の職員に対して実施"]
[null,"同加算を算定していない事業所の職員に対して実施"]
[null,"実施していない"]
[null,"法人・事業所が持ち出しで実施する賃金改善の対象となる職種を教えてください（主な3つを選択してください）"]
[null,"福祉・介護職員　　　　　　　　　生活支援員　　　　　看護職員　　　　　機能訓練指導員"]
[null,"サービス管理責任者　　　　　　事務員　　　　　　　　栄養士　　　　　　調理員　　　　　　　医師"]
[null,"その他（",{"$nulls":12},")"]
[null,"福祉・介護職員等特定処遇改善加算算定していない",{"$nulls":17},{"$f":"COUNTIF(S253:W255,\"TRUE\")","v":0}]
[]
[]
[]
[null,"②-1特定処遇改善加算の配分ルールの弾力化にともない、法人の配分ルールの見直しや取り扱いの変更はありましたか。"]
[null,"見直しや変更を行った"]
[null,"特に行っていない"]
[]
[]
[null,"②-2「見直しや変更を行った」場合、その内容を教えてください。"]
[]
[]
[]
[null,"②-3「見直しや変更を行った」際に感じられた課題やご意見等があれば教えてください。"]
[]
[]
[]
[null,"3．福祉・介護職員等ベースアップ等支援加算（令和4年10月から新設）について"]
[]
[null,"貴法人が経営する障害者支援施設における本加算の算定および賃金改善を行っている賃金項目を教えてください"]
[null,"福祉・介護職員等ベースアップ等支援加算を算定予定"]
[null,"基本給において賃金改善を実施"]
[null,"月次の手当（新設）において賃金改善を実施"]
[null,"月次の手当（増額）において賃金改善を実施"]
[null,"賞与により賃金改善を実施"]
[null,"その他（",{"$nulls":12},")"]
[null,"本加算の配分対象（予定）について教えてください"]
[null,"すべての職員（施設長・管理者等を含む）"]
[null,"すべての職員（施設長・管理者を含まない）"]
[null,"直接支援に関わる職員のみ"]
[null,"その他"]
[null,"職員1人あたり/月額・平均について教えてください。※単位：円　"]
[null,"（",{"$nulls":3},"円）"]
[null,"職種や勤務形態による金額の差について教えてください。"]
[null,"金額差を設けている。"]
[null,"金額差を設けていない。"]
[null,"賃金バランスを担保するために、法人・事業所の持ち出しで賃金改善を実施していますか"]
[null,"同加算を算定している事業所の職員に対して実施"]
[null,"同加算を算定していない事業所の職員に対して実施"]
[null,"実施していない"]
[null,"法人・事業所の持ち出しで賃金改善を実施している場合、全体の持ち出しの額を教えてください。"]
[null,"（",{"$nulls":3},"円）"]
[null,"福祉・介護職員等ベースアップ等支援加算を算定しない予定"]
[null,"その理由：　（",{"$nulls":12},")"]
[]
[]
[]
[]
["【カテゴリ⑥ 多様なニーズへの対応】"]
[]
[]
[null,"障害福祉サービス等の提供に係る意思決定支援ガイドラインを知っていますか。"]
[null,"知っている"]
[null,"言葉は知っているが内容はわからない"]
[null,"知らない"]
[]
[]
[]
[null,"貴法人が経営する障害者支援施設における障害福祉サービス等の提供に係る意思決定ガイドラインの"]
[null,"取組状況について、教えてください。"]
[null,"実施している"]
[null,"実施することのできる体制は確保しているが実施していない"]
[null,"実施体制の準備に向けて検討・準備中である"]
[null,"実施予定なし"]
[]
[null,"（参考　障害福祉サービス等の提供に係る意思決定支援ガイドライン）"]
[null,"https://www.mhlw.go.jp/file/06-Seisakujouhou-12200000-Shakaiengokyokushougaihokenfukushibu/0000159854.pdf"]
[]
[]
[null,"貴法人における虐待防止の取組状況について、教えてください。"]
[null,"虐待防止のための研修を実施している"]
[null,"虐待防止のための研修の実施を検討・準備中である"]
[null,"その他、虐待防止に関する取り組みを実施している。"]
[null,"具体的な内容："]
[]
[]
["【カテゴリ⑦ 高齢障害者（65歳以上の障害者）に対する支援に関する課題】"]
[]
[]
[null,"高齢障害者（65歳以上の障害者）に対する支援に関する課題があれば、教えてください。"]
[null,"介護保険制度優先原則（障害者総合支援法第7条）の自治体の運用等"]
[null,"介護保険サービスへ移行する際の利用者負担（低所得者への配慮等）"]
[null,"高齢化・重度化に対応するための医療的ケアや医療体制"]
[null,"仕事や作業の確保・マッチング"]
[null,"いわゆる「親なき後」の支援"]
[null,"その他　　具体的に："]
[]
[null,"上記、介護保険制度の優先原則（障害者総合支援法第7条）の自治体の運用について、具体的な例があれば教えてください。"]
[]
[]
["【カテゴリ⑧ 共生型サービス】"]
[]
[]
[null,"共生型サービスの実施状況について、教えてください。"]
[null,"実施している"]
[null,"現時点で実施していないが、今後の実施に向け現在具体的な検討を進めている"]
[null,"実施に向けて検討したが、実施しないことにした"]
[null,"　　　その理由："]
[null,"実施を検討していない"]
[null,"　　　その理由："]
[]
[]
[]
[null,"地域共生社会の実現に向けて、制度のはざまにある生活・福祉課題に対し、貴法人が経営する障害者支援施設において"]
[null,"実践されている取組について教えてください。"]
[]
[{"$nulls":6},"単独で実施","連携・協働により実施"]
[{"$nulls":7},"自治体",null,"社会福祉協議会","地域住民",null,"社会福祉法人","NPO法人等\n関係団体",null,"民間企業","その他"]
[null,"地域の要支援者に対する相談支援",{"$nulls":24},{"$f":"COUNTIF(T364:Z364,\"TRUE\")","v":0}]
[null,"地域の要支援者に対する権利擁護支援",{"$nulls":24},{"$f":"COUNTIF(T365:Z365,\"TRUE\")","v":0}]
[null,"既存事業の利用料の減額・免除",{"$nulls":24},0]
[null,"地域住民に対する福祉教育",{"$nulls":24},0]
[null,"地域の要支援者に対する配食・見守り・移動等の生活支援",{"$nulls":24},0]
[null,"地域の要支援者に対する資金や物資の貸付・提供",{"$nulls":24},0]
[null,"地域の福祉ニーズ等を把握するためのサロン活動",{"$nulls":24},0]
[null,"地域の関係者とのネットワークづくり",{"$nulls":24},0]
[null,"その他",{"$nulls":24},0]
[]
[]
[null,"連携・協働している機関　その他名称"]
[]
[]
[]
[]
[null,"（参考　「地域共生社会」の実現に向けて）"]
[null,"https://www.mhlw.go.jp/stf/newpage_00506.html"]
[]
[]
[]
[]
["【カテゴリ⑨ ICT、ロボット等の活用】"]
[]
[]
[null,"①   貴法人が経営する障害者支援施設において、利用者への直接支援に係るICT機器やロボット等の導入の"]
[null,"状況についてお伺いします。"]
[{"$nulls":6},"導入している",null,null,"近々導入予定",null,null,"導入したいが、障壁があり導入できていない",null,null,"導入予定なし"]
[null,"移乗支援（装着型）"]
[null,"移乗支援（非装着型）"]
[null,"移動支援"]
[null,"排泄支援"]
[null,"見守り"]
[null,"コミュニケーション"]
[null,"入浴支援"]
[null,"その他1　　　（",{"$nulls":3},"）"]
[null,"その他2　　　（",{"$nulls":3},"）"]
[null,"その他3　　　（",{"$nulls":3},"）"]
[]
[]
[null,"導入の障壁となっていることについて、教えてください。（主な3つを選択してください）。"]
[null,"導入費用が高額であるため",{"$nulls":17},{"$f":"COUNTIF(S405:S411,\"TRUE\")","v":0}]
[null,"利用者の安全確保に不安があるため"]
[null,"職員の安全確保に不安があるため"]
[null,"導入の可否を判断するための機器に関する情報が少ないため"]
[null,"研修や使い方の周知の方法に不安があるため"]
[null,"機器の操作が難しそうであるため"]
[null,"その他　　 　（",{"$nulls":7},"）"]
[]
[]
[null,"ICT、ロボット等の導入のきっかけについて、教えてください。",{"$nulls":7},"複数回答"]
[null,"利用者の負担軽減",{"$nulls":17},{"$f":"COUNTIF(S415:S423,\"TRUE\")","v":0}]
[null,"職員の負担軽減"]
[null,"職員の確保"]
[null,"職員の離職防止"]
[null,"ヒヤリハット・介護事故の防止"]
[null,"費用対効果"]
[null,"業務効率化"]
[null,"テスト導入"]
[null,"その他　 　　（",{"$nulls":7},"）"]
[]
[]
[null,"ICT、ロボット等の導入メリットについて、どのように感じていますか。",{"$nulls":7},"複数回答"]
[null,"サービスの質の向上につながった",{"$nulls":17},{"$f":"COUNTIF(S427:S430,\"TRUE\")","v":0}]
[null,"安全・安心な職場づくり（障害福祉人材の負担軽減）につながった"]
[null,"人員削減につながった"]
[null,"その他　　 　（",{"$nulls":7},"）"]
[]
[]
[]
[null,"②   貴法人が経営する障害者支援施設の間接業務の効率化に向けた、ICT機器等の導入の状況についてお伺いします。"]
[{"$nulls":6},"導入している",null,null,"近々導入予定",null,null,"導入したいが、障壁があり導入できていない",null,null,"導入予定なし"]
[null,"記録ソフト"]
[null,"勤怠管理システム"]
[null,"情報共有ツール"]
[null,"通信機器（インカム等）"]
[null,"その他1　　　（",{"$nulls":3},"）"]
[null,"その他2　　　（",{"$nulls":3},"）"]
[null,"その他3　　　（",{"$nulls":3},"）"]
[]
[]
[]
[null,"導入の障壁となっていることについて、教えてください。（主な3つを選択してください）。"]
[null,"導入費用が高額であるため",{"$nulls":17},{"$f":"COUNTIF(S447:S451,\"TRUE\")","v":0}]
[null,"導入の可否を判断するための機器に関する情報が少ないため"]
[null,"研修や使い方の周知の方法に不安があるため"]
[null,"機器の操作が難しそうであるため"]
[null,"その他　　 　（",{"$nulls":7},"）"]
[]
[null,"間接業務の効率化に向けたICT機器等の導入のきっかけについて、教えてください。"]
[{"$nulls":9},"複数回答"]
[null,"職員の負担軽減",{"$nulls":17},{"$f":"COUNTIF(S455:S462,\"TRUE\")","v":0}]
[null,"職員の確保"]
[null,"職員の離職防止"]
[null,"ヒヤリハット・介護事故の防止"]
[null,"費用対効果"]
[null,"業務効率化"]
[null,"テスト導入"]
[null,"その他　 　　（",{"$nulls":7},"）"]
[]
[]
[null,"ICT、ロボット等の導入メリットについて、どのように感じていますか。",{"$nulls":7},"複数回答"]
[null,"サービスの質の向上につながった",{"$nulls":17},{"$f":"COUNTIF(S466:S469,\"TRUE\")","v":0}]
[null,"安全・安心な職場づくり（障害福祉人材の負担軽減）につながった"]
[null,"人員削減につながった"]
[null,"その他 　　　（",{"$nulls":7},"）"]
[]
[]
["【カテゴリ⑩ 感染症対策・災害支援の取組】"]
[]
[]
[]
[null,"①感染症発生時の事業継続計画（BCP）の策定状況について教えてください。"]
[null,"策定済み"]
[null,"策定中（施設ごとに作成している場合、未策定の施設がある等）"]
[null,"策定できていない"]
[null,"その他　具体的に："]
[]
[]
[]
[null,"②自然災害発生時の事業継続計画（BCP）の策定状況について教えてください。"]
[null,"策定済み"]
[null,"策定中（施設ごとに作成している場合、未策定の施設がある等）"]
[null,"策定できていない"]
[null,"その他　具体的に："]
[]
[]
[]
[null,"③災害支援に向けて実施していることを教えてください。",{"$nulls":7},"複数回答"]
[null,"危機管理・事業継続（BCM）体制の整備",{"$nulls":17},{"$f":"COUNTIF($S$493:$S$497,TRUE)","v":0}]
[null,"発災時の対応に関する地域住民との連絡・調整"]
[null,"災害派遣福祉チームへの職員派遣（登録）"]
[null,"福祉避難所への登録"]
[null,"その他　具体的に："]
[]
[]
[]
["【カテゴリ⑪ 地域区分に関する課題、意見等】"]
[]
[]
[null,"貴法人における現行の地域区分に対する評価や課題について教えてください。"]
[]
[null,"特に課題はない"]
[null,"課題がある"]
[]
[]
[null,"地域区分に課題がある場合、その内容を教えてください。"]
[]
[]
[]
[null,"その他、地域区分についてご意見があれば教えてください。"]
[]
[]
[null,"（参考：障害福祉サービス等報酬改定の概要 P155-156）"]
[null,"https://www.mhlw.go.jp/content/000759622.pdf"]
[]
["【カテゴリ⑫ 食事提供体制加算・送迎加算の実施状況】"]
[]
[]
[null,"①  貴法人の対象施設（通所支援事業等）における食事提供体制加算の算定状況について教えてください。"]
{"$rows_empty":7}
[null,"算定している"]
[null,"　　食事の提供方法について教えてください。"]
[null,"事業所に従事する調理員が調理室で調理して提供"]
[null,"食事提供に関する業務を外部委託している"]
[null,"その他"]
[null,"食事は提供しているが加算の算定はしていない"]
[null,"その理由："]
[null,"加算対象外（食事提供は実施していない）"]
[]
[null,"②  「算定している」場合、貴法人の対象施設（通所支援事業等）における食事提供に関する利用者の状況に"]
[null,"ついて教えてください。"]
[null,"食事提供がなかった場合に食事が困難となることが想定される利用者数"]
[null,"（",null,null,"人）"]
[null,"食事が困難となることが想定される理由"]
[null,"経済的な理由",{"$nulls":17},{"$f":"COUNTIF($S$545:$S$547,TRUE)","v":0}]
[null,"利用者の障害特性による理由"]
[null,"その他（",{"$nulls":12},")"]
[]
[]
[]
[null,"③  貴法人の対象施設（通所支援事業等）における送迎加算の算定状況について教えてください。"]
{"$rows_empty":7}
[null,"算定している"]
[null,"送迎を行っている理由（複数回答可）"]
[null,"公共交通機関を利用した通所が難しい",{"$nulls":17},{"$f":"COUNTIF(S561:S566,\"TRUE\")","v":0}]
[null,"重度の障害など、自ら通所が困難な利用者がいるため"]
[null,"利用者の通所時の安全確保のため"]
[null,"利用者本人や家族からの要望が多いから"]
[null,"事業所サービスの魅力向上のため"]
[null,"その他："]
[null,"送迎を実施しているが加算の算定はしていない"]
[null,"その理由："]
[null,"加算対象外（送迎を実施していない）"]
[]
[]
[null,"④  「算定している」場合、貴法人の対象施設（通所支援事業等）において、送迎に関する利用者の状況について"]
[null,"教えてください。"]
[null,"送迎がなかった場合に通所が困難となることが想定される利用者数"]
[null,"（",null,null,"人）"]
[null,"通所が困難となることが想定される理由"]
[null,"利用者の障害特性により、安全確保が難しいため",{"$nulls":17},{"$f":"COUNTIF($S$577:$S$579,TRUE)","v":0}]
[null,"事業所周辺の環境のため（公共交通機関が周辺にない等）"]
[null,"その他（",{"$nulls":12},")"]
[]
[]
["【カテゴリ⑬ 事業展開】"]
[]
[]
[null,"　　　地域の多様なニーズに対応するためには、既存事業を中心に、多角化・多機能化などにより経営基盤を\n　　　強化していくことが求められています。"]
[]
[null,"貴法人での取り組み"]
[null,"（参考：全国経営協 経営実践事例集2022～多角化・多機能化に向けた実践～）"]
[null,"https://www.keieikyo.com/data/kjjirei22_00.pdf"]
[]
[null,"①多角化・多機能化"]
[null,"貴法人で多角化・多機能化の実践事例があれば、内容を簡単に教えてください。"]
[null,"（例：障害福祉サービスのノウハウ等を活用した高齢障害者の介護サービスの展開、既存事業を拠点とした小規模・多機能の拠点サービス作り 等）"]
[]
[]
[]
[]
[]
[null,"②複数法人連携・協働"]
[null,"都道府県や市町村圏域で展開されているネットワーク事業など、複数法人連携の取組への貴法人の参画状況"]
[null,"について教えてください。"]
[null,"複数法人連携の取り組みに参画している。"]
[null,"具体的な取組（",{"$nulls":7},")"]
[null,"参画を検討中"]
[null,"参画はしていない"]
[]
[]
[]
[null,"③社会福祉連携推進法人"]
[null,"　今後、貴法人における社会福祉連携推進法人の設立や参画の予定について教えてください。"]
[null,"既に設立済み/参画済み"]
[null,"設置/参画に向けた準備をしている。"]
[null,"設置/参画に向けて検討中。"]
[null,"設置/参画の予定はない。"]
[]
[]
[null,"④合併事業譲渡"]
[null,"今後、貴法人において、中長期的に障害福祉サービス経営主体の統合・再編（合併・事業譲渡）が必要になると"]
[null,"考えていますか。"]
[null,"必要となると考えている"]
[null,"人材確保が困難になるため",{"$nulls":17},{"$f":"COUNTIF($S$621:$S$624,TRUE)","v":0}]
[null,"後継者が不足するため"]
[null,"人口減少等にともない福祉ニーズ自体が大幅に変化するため"]
[null,"その他"]
[null,"必要ではないと考えている"]
[null,"わからない"]
[]
[]
[]
[null,"【そのほか】"]
[null,"本会の活動について、ご意見・ご要望をお聞かせください。"]

{"sheet":"施設","index":1,"n_rows":139,"n_cols":20,"rows_kept":139,"hidden":true,"merged":[[1,0,1,9],[16,2,16,7],[31,1,32,2],[31,3,32,3],[31,4,31,5],[31,6,31,7],[32,4,32,5],[32,6,32,7],[33,1,34,2],[35,1,36,2],[37,1,38,2],[39,1,40,2],[41,1,42,2],[43,1,44,2],[58,1,58,4],[59,1,59,4],[60,1,60,4],[61,1,61,4],[62,1,62,4],[63,1,63,4],[64,1,64,4],[65,1,65,4],[70,1,70,4],[71,1,71,4],[72,1,72,4],[73,1,73,4],[74,1,74,4],[75,1,75,4],[76,1,76,4],[77,1,77,4],[78,1,78,4],[79,1,79,4],[80,1,80,4],[81,1,81,4],[82,1,82,4],[89,1,89,4],[90,1,90,4],[91,1,91,4],[92,1,92,4],[93,1,93,4],[97,1,97,4],[98,1,98,4],[99,1,99,4],[103,1,103,6],[110,1,110,4],[111,1,111,4],[112,1,112,4],[113,1,113,4],[114,1,114,4],[118,1,118,4],[119,1,119,4],[128,3,128,8],[129,3,129,8],[130,3,130,8],[131,3,131,8],[132,3,132,8],[133,3,133,8],[134,3,134,8],[135,3,135,8],[136,3,136,8],[137,3,137,8],[138,3,138,8]]}
{"$rows_empty":14}
[null,"《基本情報》"]
[]
[null," 所在地"]
[]
[null," 級地区分",null,"▼"]
[]
[]
[]
[]
[null,"《サービスの実施状況》"]
[]
[null,"①  日中活動"]
[]
[null,"「指定されている昼間実施サービス」の種類について、実施しているサービスの種類にチェックしてください。"]
[null,"また、12月中の利用者が「あり」の場合は、「利用実人数」（12月１日時点）、「利用延人数」（12月中）も"]
[null,"記入してください。"]
[]
[null,"サービスの種類",null,null,"利用実人数",null,"利用延人数"]
[{"$nulls":4},"（12月１日時点）",null,"（12月中）"]
[null,"生活介護",null,"入所者",null,"人",null,"人"]
[{"$nulls":3},"通所者",null,"人",null,"人"]
[null,"自立訓練（機能訓練）",null,"入所者",null,"人",null,"人"]
[{"$nulls":3},"通所者",null,"人",null,"人"]
[null,"自立訓練（生活訓練）",null,"入所者",null,"人",null,"人"]
[{"$nulls":3},"通所者",null,"人",null,"人"]
[null,"就労移行支援",null,"入所者",null,"人",null,"人"]
[{"$nulls":3},"通所者",null,"人",null,"人"]
[null,"就労継続支援（A型）",null,"入所者",null,"人",null,"人"]
[{"$nulls":3},"通所者",null,"人",null,"人"]
[null,"就労継続支援（B型）",null,"入所者",null,"人",null,"人"]
[{"$nulls":3},"通所者",null,"人",null,"人"]
[]
[]
[null,"②  施設入所支援"]
[]
[null,"障害者支援施設における施設入所支援の定員・利用者数に関して、令和4年12月1日時点の状況を"]
[null,"回答してください。"]
[null," 定員",null,"人"]
[null," 実利用者数（現員）",null,"人"]
[]
[]
[null,"《収支について》"]
[]
[null,"サービス活動増減差額の状況について教えてください。"]
[null,"令和2年度は黒字で令和3年度も黒字（差額増加）"]
[null,"令和2年度は黒字で令和3年度も黒字（差額横ばい）"]
[null,"令和2年度は黒字で令和3年度も黒字（差額下降）"]
[null,"令和2年度は黒字であったが令和3年度は赤字"]
[null,"令和2年度は赤字で令和3年度も赤字（差額増加）"]
[null,"令和2年度は赤字で令和3年度も赤字（差額横ばい）"]
[null,"令和2年度は赤字で令和3年度も赤字（差額下降）"]
[null,"令和2年度は赤字であったが令和3年度は黒字"]
[]
[]
[]
[null,"サービス活動増減差額の変化の要因について教えてください（最大3つまで選択可）。"]
[null,"重度の利用者増",{"$nulls":17},{"$f":"COUNTIF($S$71:$S$83,TRUE)","v":0}]
[null,"重度の利用者減"]
[null,"稼働率の増"]
[null,"稼働率の減"]
[null,"常勤比率の上"]
[null,"常勤比率の下"]
[null,"職員処遇の引き上げ"]
[null,"職員処遇の引き下げ"]
[null,"経営努力により人件費以外の支出減"]
[null,"経営努力により人件費以外の支出増"]
[null,"報酬改定がプラスに働いた"]
[null,"報酬改定がマイナスに働いた"]
[null,"その他"]
[]
[]
[]
[null,"稼働率の状況について教えてください。"]
[]
[null,"令和3年度は、令和2年度に比べ"]
[null,"大きく増加"]
[null,"やや増加"]
[null,"変わらない"]
[null,"やや減少"]
[null,"大きく減少"]
[]
[]
[null,"⇒今後の見通しについて教えてください。"]
[null,"増加見込"]
[null,"変わらない"]
[null,"減少見込"]
[]
[]
[null,"⇒稼働率を高めるために実施している取組があれば、教えてください。"]
[]
[]
[]
[null,"同施設に所属する障害福祉人材の現状の賃金水準について、同地域に所在する企業等の賃金水準と比べ、"]
[null,"どのように感じていますか。"]
[]
[null,"同施設に所属する障害福祉人材の賃金水準は、"]
[null,"とても高い"]
[null,"やや高い"]
[null,"同じ程度"]
[null,"やや低い"]
[null,"とても低い"]
[]
[]
[null,"算定したいが、できない加算について"]
[null,"算定したいができない加算がある"]
[null,"算定したいができない加算はない"]
[]
[]
[null,"加算名については、下記をご覧ください。"]
[null,null,"加算名"]
[]
[]
[null,"※行の削除はできません"]
[]
[null,"サービス名","具体的な加算名","その理由"]
[1,{"$nulls":13},{"$f":"IF(ISERROR(VLOOKUP(B130,DB!$E$8:$F$17,2,FALSE)),\"\",\"DB!\"&VLOOKUP(B130,DB!$E$8:$F$17,2,FALSE))","v":""}]
[2,{"$nulls":13},{"$f":"IF(ISERROR(VLOOKUP(B131,DB!$E$8:$F$17,2,FALSE)),\"\",\"DB!\"&VLOOKUP(B131,DB!$E$8:$F$17,2,FALSE))","v":""}]
[3,{"$nulls":13},{"$f":"IF(ISERROR(VLOOKUP(B132,DB!$E$8:$F$17,2,FALSE)),\"\",\"DB!\"&VLOOKUP(B132,DB!$E$8:$F$17,2,FALSE))","v":""}]
[4,{"$nulls":13},{"$f":"IF(ISERROR(VLOOKUP(B133,DB!$E$8:$F$17,2,FALSE)),\"\",\"DB!\"&VLOOKUP(B133,DB!$E$8:$F$17,2,FALSE))","v":""}]
[5,{"$nulls":13},{"$f":"IF(ISERROR(VLOOKUP(B134,DB!$E$8:$F$17,2,FALSE)),\"\",\"DB!\"&VLOOKUP(B134,DB!$E$8:$F$17,2,FALSE))","v":""}]
[6,{"$nulls":13},{"$f":"IF(ISERROR(VLOOKUP(B135,DB!$E$8:$F$17,2,FALSE)),\"\",\"DB!\"&VLOOKUP(B135,DB!$E$8:$F$17,2,FALSE))","v":""}]
[7,{"$nulls":13},{"$f":"IF(ISERROR(VLOOKUP(B136,DB!$E$8:$F$17,2,FALSE)),\"\",\"DB!\"&VLOOKUP(B136,DB!$E$8:$F$17,2,FALSE))","v":""}]
[8,{"$nulls":13},{"$f":"IF(ISERROR(VLOOKUP(B137,DB!$E$8:$F$17,2,FALSE)),\"\",\"DB!\"&VLOOKUP(B137,DB!$E$8:$F$17,2,FALSE))","v":""}]
[9,{"$nulls":13},{"$f":"IF(ISERROR(VLOOKUP(B138,DB!$E$8:$F$17,2,FALSE)),\"\",\"DB!\"&VLOOKUP(B138,DB!$E$8:$F$17,2,FALSE))","v":""}]
[10,{"$nulls":13},{"$f":"IF(ISERROR(VLOOKUP(B139,DB!$E$8:$F$17,2,FALSE)),\"\",\"DB!\"&VLOOKUP(B139,DB!$E$8:$F$17,2,FALSE))","v":""}]

{"sheet":"施設1","index":2,"n_rows":139,"n_cols":20,"rows_kept":139,"merged":[[1,0,1,9],[16,2,16,7],[31,1,32,2],[31,3,32,3],[31,4,31,5],[31,6,31,7],[32,4,32,5],[32,6,32,7],[33,1,34,2],[35,1,36,2],[37,1,38,2],[39,1,40,2],[41,1,42,2],[43,1,44,2],[58,1,58,4],[59,1,59,4],[60,1,60,4],[61,1,61,4],[62,1,62,4],[63,1,63,4],[64,1,64,4],[65,1,65,4],[70,1,70,4],[71,1,71,4],[72,1,72,4],[73,1,73,4],[74,1,74,4],[75,1,75,4],[76,1,76,4],[77,1,77,4],[78,1,78,4],[79,1,79,4],[80,1,80,4],[81,1,81,4],[82,1,82,4],[89,1,89,4],[90,1,90,4],[91,1,91,4],[92,1,92,4],[93,1,93,4],[97,1,97,4],[98,1,98,4],[99,1,99,4],[103,1,103,6],[110,1,110,4],[111,1,111,4],[112,1,112,4],[113,1,113,4],[114,1,114,4],[118,1,118,4],[119,1,119,4],[128,3,128,8],[129,3,129,8],[130,3,130,8],[131,3,131,8],[132,3,132,8],[133,3,133,8],[134,3,134,8],[135,3,135,8],[136,3,136,8],[137,3,137,8],[138,3,138,8]]}
{"$rows_empty":14}
[null,"《基本情報》"]
[]
[null," 所在地"]
[]
[null," 級地区分",null,"▼"]
[]
[]
[]
[]
[null,"《サービスの実施状況》"]
[]
[null,"①  日中活動"]
[]
[null,"「指定されている昼間実施サービス」の種類について、実施しているサービスの種類にチェックしてください。"]
[null,"また、12月中の利用者が「あり」の場合は、「利用実人数」（12月１日時点）、「利用延人数」（12月中）も"]
[null,"記入してください。"]
[]
[null,"サービスの種類",null,null,"利用実人数",null,"利用延人数"]
[{"$nulls":4},"（12月１日時点）",null,"（12月中）"]
[null,"生活介護",null,"入所者",null,"人",null,"人"]
[{"$nulls":3},"通所者",null,"人",null,"人"]
[null,"自立訓練（機能訓練）",null,"入所者",null,"人",null,"人"]
[{"$nulls":3},"通所者",null,"人",null,"人"]
[null,"自立訓練（生活訓練）",null,"入所者",null,"人",null,"人"]
[{"$nulls":3},"通所者",null,"人",null,"人"]
[null,"就労移行支援",null,"入所者",null,"人",null,"人"]
[{"$nulls":3},"通所者",null,"人",null,"人"]
[null,"就労継続支援（A型）",null,"入所者",null,"人",null,"人"]
[{"$nulls":3},"通所者",null,"人",null,"人"]
[null,"就労継続支援（B型）",null,"入所者",null,"人",null,"人"]
[{"$nulls":3},"通所者",null,"人",null,"人"]
[]
[]
[null,"②  施設入所支援"]
[]
[null,"障害者支援施設における施設入所支援の定員・利用者数に関して、令和4年12月1日時点の状況を"]
[null,"回答してください。"]
[null," 定員",null,"人"]
[null," 実利用者数（現員）",null,"人"]
[]
[]
[null,"《収支について》"]
[]
[null,"サービス活動増減差額の状況について教えてください。"]
[null,"令和2年度は黒字で令和3年度も黒字（差額増加）"]
[null,"令和2年度は黒字で令和3年度も黒字（差額横ばい）"]
[null,"令和2年度は黒字で令和3年度も黒字（差額下降）"]
[null,"令和2年度は黒字であったが令和3年度は赤字"]
[null,"令和2年度は赤字で令和3年度も赤字（差額増加）"]
[null,"令和2年度は赤字で令和3年度も赤字（差額横ばい）"]
[null,"令和2年度は赤字で令和3年度も赤字（差額下降）"]
[null,"令和2年度は赤字であったが令和3年度は黒字"]
[]
[]
[]
[null,"サービス活動増減差額の変化の要因について教えてください（最大3つまで選択可）。"]
[null,"重度の利用者増",{"$nulls":17},{"$f":"COUNTIF($S$71:$S$83,TRUE)","v":0}]
[null,"重度の利用者減"]
[null,"稼働率の増"]
[null,"稼働率の減"]
[null,"常勤比率の上"]
[null,"常勤比率の下"]
[null,"職員処遇の引き上げ"]
[null,"職員処遇の引き下げ"]
[null,"経営努力により人件費以外の支出減"]
[null,"経営努力により人件費以外の支出増"]
[null,"報酬改定がプラスに働いた"]
[null,"報酬改定がマイナスに働いた"]
[null,"その他"]
[]
[]
[]
[null,"稼働率の状況について教えてください。"]
[]
[null,"令和3年度は、令和2年度に比べ"]
[null,"大きく増加"]
[null,"やや増加"]
[null,"変わらない"]
[null,"やや減少"]
[null,"大きく減少"]
[]
[]
[null,"⇒今後の見通しについて教えてください。"]
[null,"増加見込"]
[null,"変わらない"]
[null,"減少見込"]
[]
[]
[null,"⇒稼働率を高めるために実施している取組があれば、教えてください。"]
[]
[]
[]
[null,"同施設に所属する障害福祉人材の現状の賃金水準について、同地域に所在する企業等の賃金水準と比べ、"]
[null,"どのように感じていますか。"]
[]
[null,"同施設に所属する障害福祉人材の賃金水準は、"]
[null,"とても高い"]
[null,"やや高い"]
[null,"同じ程度"]
[null,"やや低い"]
[null,"とても低い"]
[]
[]
[null,"算定したいが、できない加算について"]
[null,"算定したいができない加算がある"]
[null,"算定したいができない加算はない"]
[]
[]
[null,"加算名については、下記をご覧ください。"]
[null,null,"加算名"]
[]
[]
[null,"※行の削除はできません"]
[]
[null,"サービス名","具体的な加算名","その理由"]
[1,{"$nulls":13},{"$f":"IF(ISERROR(VLOOKUP(B130,DB!$E$8:$F$17,2,FALSE)),\"\",\"DB!\"&VLOOKUP(B130,DB!$E$8:$F$17,2,FALSE))","v":""}]
[2,{"$nulls":13},{"$f":"IF(ISERROR(VLOOKUP(B131,DB!$E$8:$F$17,2,FALSE)),\"\",\"DB!\"&VLOOKUP(B131,DB!$E$8:$F$17,2,FALSE))","v":""}]
[3,{"$nulls":13},{"$f":"IF(ISERROR(VLOOKUP(B132,DB!$E$8:$F$17,2,FALSE)),\"\",\"DB!\"&VLOOKUP(B132,DB!$E$8:$F$17,2,FALSE))","v":""}]
[4,{"$nulls":13},{"$f":"IF(ISERROR(VLOOKUP(B133,DB!$E$8:$F$17,2,FALSE)),\"\",\"DB!\"&VLOOKUP(B133,DB!$E$8:$F$17,2,FALSE))","v":""}]
[5,{"$nulls":13},{"$f":"IF(ISERROR(VLOOKUP(B134,DB!$E$8:$F$17,2,FALSE)),\"\",\"DB!\"&VLOOKUP(B134,DB!$E$8:$F$17,2,FALSE))","v":""}]
[6,{"$nulls":13},{"$f":"IF(ISERROR(VLOOKUP(B135,DB!$E$8:$F$17,2,FALSE)),\"\",\"DB!\"&VLOOKUP(B135,DB!$E$8:$F$17,2,FALSE))","v":""}]
[7,{"$nulls":13},{"$f":"IF(ISERROR(VLOOKUP(B136,DB!$E$8:$F$17,2,FALSE)),\"\",\"DB!\"&VLOOKUP(B136,DB!$E$8:$F$17,2,FALSE))","v":""}]
[8,{"$nulls":13},{"$f":"IF(ISERROR(VLOOKUP(B137,DB!$E$8:$F$17,2,FALSE)),\"\",\"DB!\"&VLOOKUP(B137,DB!$E$8:$F$17,2,FALSE))","v":""}]
[9,{"$nulls":13},{"$f":"IF(ISERROR(VLOOKUP(B138,DB!$E$8:$F$17,2,FALSE)),\"\",\"DB!\"&VLOOKUP(B138,DB!$E$8:$F$17,2,FALSE))","v":""}]
[10,{"$nulls":13},{"$f":"IF(ISERROR(VLOOKUP(B139,DB!$E$8:$F$17,2,FALSE)),\"\",\"DB!\"&VLOOKUP(B139,DB!$E$8:$F$17,2,FALSE))","v":""}]

{"sheet":"サービス名・加算名","index":3,"n_rows":180,"n_cols":4,"rows_kept":180,"merged":[[6,2,6,3],[166,2,166,3]]}
[]
[null," 生活介護"," 自立訓練（機能訓練）"," 自立訓練（生活訓練）"]
[null," 就労移行支援"," 就労継続支援（A型）"," 就労継続支援（B型）"]
[null," 就労定着支援"," 自立生活援助"," 施設入所支援"]
[null," 共同生活援助"]
[]
[null,"サービス名","加算名"]
[null," 生活介護"," 人員配置体制加算Ⅰ・Ⅱ・Ⅲ"]
[null,null," 福祉専門職員配置等加算Ⅰ・Ⅱ・Ⅲ"]
[null,null," 常任看護職員等配置加算Ⅰ・Ⅱ・Ⅲ"]
[null,null," 視覚・聴覚言語障害者支援体制加算"]
[null,null," 初期加算"]
[null,null," 訪問支援特別加算（1時間未満／1時間以上）"]
[null,null," 欠席時対応加算"]
[null,null," 重度障害者支援加算Ⅰ・Ⅱ"]
[null,null," リハビリテーション加算"]
[null,null," 利用者負担上限額管理加算"]
[null,null," 食事提供体制加算"]
[null,null," 延長支援加算（1時間未満／1時間以上）"]
[null,null," 送迎加算"]
[null,null," 障害福祉サービスの体験利用支援加算"]
[null,null," 就労移行支援体制加算"]
[null,null," 福祉・介護職員処遇改善加算Ⅰ・Ⅱ・Ⅲ"]
[null,null," 福祉・介護職員処遇改善特別加算"]
[null,null," 福祉・介護職員等特定処遇改善加算Ⅰ・Ⅱ"]
[null,null," 福祉・介護職員等ベースアップ等加算"]
[null," 自立訓練（機能訓練）"," 福祉専門職員配置等加算Ⅰ・Ⅱ・Ⅲ"]
[null,null," 視覚・聴覚言語障害者支援体制加算"]
[null,null," 初期加算"]
[null,null," 欠席時対応加算"]
[null,null," リハビリテーション加算"]
[null,null," 利用者負担上限額管理加算"]
[null,null," 食事提供体制加算"]
[null,null," 送迎加算"]
[null,null," 障害福祉サービスの体験利用支援加算"]
[null,null," 社会生活支援特別加算"]
[null,null," 福祉・介護職員処遇改善加算Ⅰ・Ⅱ・Ⅲ"]
[null,null," 福祉・介護職員処遇改善特別加算"]
[null,null," 福祉・介護職員等特定処遇改善加算Ⅰ・Ⅱ"]
[null,null," 福祉・介護職員等ベースアップ等加算"]
[null," 自立訓練（生活訓練）"," 福祉専門職員配置等加算Ⅰ・Ⅱ・Ⅲ"]
[null,null," 視覚・聴覚言語障害者支援体制加算"]
[null,null," 初期加算"]
[null,null," 欠席時対応加算"]
[null,null," 医療連携体制加算Ⅰ・Ⅱ・Ⅲ・Ⅳ・Ⅴ・Ⅵ"]
[null,null," 個別計画訓練支援加算"]
[null,null," 短期滞在加算Ⅰ・Ⅱ"]
[null,null," 障害者退院支援施設加算Ⅰ・Ⅱ"]
[null,null," 利用者負担上限額管理加算"]
[null,null," 食事提供体制加算"]
[null,null," 看護職員配置加算"]
[null,null," 送迎加算"]
[null,null," 障害福祉サービスの体験利用支援加算"]
[null,null," 社会生活支援特別加算"]
[null,null," 就労移行支援体制加算"]
[null,null," 福祉・介護職員処遇改善加算Ⅰ・Ⅱ・Ⅲ"]
[null,null," 福祉・介護職員処遇改善特別加算"]
[null,null," 福祉・介護職員等特定処遇改善加算Ⅰ・Ⅱ"]
[null,null," 福祉・介護職員等ベースアップ等加算"]
[null," 就労移行支援"," 福祉専門職員配置等加算Ⅰ・Ⅱ"]
[null,null," 就労支援関係研修修了加算"]
[null,null," 視覚・聴覚言語障害者支援体制加算"]
[null,null," 初期加算"]
[null,null," 訪問支援特別加算（1時間未満／1時間以上）"]
[null,null," 欠席時対応加算"]
[null,null," 医療連携体制加算Ⅰ・Ⅱ・Ⅲ・Ⅳ・Ⅴ・Ⅵ"]
[null,null," 精神障害者退院支援施設加算Ⅰ・Ⅱ"]
[null,null," 利用者負担上限額管理加算"]
[null,null," 食事提供体制加算"]
[null,null," 移行準備支援体制加算"]
[null,null," 送迎加算"]
[null,null," 障害福祉サービスの体験利用支援加算"]
[null,null," 通勤訓練加算"]
[null,null," 在宅時生活支援サービス加算"]
[null,null," 社会生活支援特別加算"]
[null,null," 支援計画会議実施加算"]
[null,null," 福祉・介護職員処遇改善加算Ⅰ・Ⅱ・Ⅲ"]
[null,null," 福祉・介護職員処遇改善特別加算"]
[null,null," 福祉・介護職員等特定処遇改善加算Ⅰ・Ⅱ"]
[null,null," 福祉・介護職員等ベースアップ等加算"]
[null," 就労継続支援（A型）"," 福祉専門職員配置等加算Ⅰ・Ⅱ・Ⅲ"]
[null,null," 視覚・聴覚言語障害者支援体制加算"]
[null,null," 重度者支援体制加算Ⅰ・Ⅱ・Ⅲ"]
[null,null," 初期加算"]
[null,null," 訪問支援特別加算（1時間未満／1時間以上）"]
[null,null," 欠席時対応加算"]
[null,null," 就労移行支援体制加算Ⅰ・Ⅱ"]
[null,null," 就労移行連携加算"]
[null,null," 賃金向上達成指導員配置加算"]
[null,null," 医療連携体制加算Ⅰ・Ⅱ・Ⅲ・Ⅳ・Ⅴ・Ⅵ"]
[null,null," 利用者負担上限額管理加算"]
[null,null," 食事提供体制加算"]
[null,null," 送迎加算"]
[null,null," 障害福祉サービスの体験利用支援加算"]
[null,null," 在宅時生活支援サービス加算"]
[null,null," 社会生活支援特別加算"]
[null,null," 福祉・介護職員処遇改善加算Ⅰ・Ⅱ・Ⅲ"]
[null,null," 福祉・介護職員処遇改善特別加算"]
[null,null," 福祉・介護職員等特定処遇改善加算Ⅰ・Ⅱ"]
[null,null," 福祉・介護職員等ベースアップ等加算"]
[null," 就労継続支援（B型）"," 福祉専門職員配置等加算Ⅰ・Ⅱ・Ⅲ"]
[null,null," 視覚・聴覚言語障害者支援体制加算"]
[null,null," 重度者支援体制加算Ⅰ・Ⅱ・Ⅲ"]
[null,null," 初期加算"]
[null,null," 訪問支援特別加算（1時間未満／1時間以上）"]
[null,null," 欠席時対応加算"]
[null,null," 就労移行支援体制加算Ⅰ・Ⅱ・Ⅲ・Ⅳ"]
[null,null," 就労移行連携加算"]
[null,null," 目的工賃達成指導員配置加算"]
[null,null," 目標工賃達成加算Ⅰ・Ⅱ"]
[null,null," 医療連携体制加算Ⅰ・Ⅱ・Ⅲ・Ⅳ・Ⅴ・Ⅵ"]
[null,null," 利用者負担上限額管理加算"]
[null,null," 食事提供体制加算"]
[null,null," 送迎加算"]
[null,null," 障害福祉サービスの体験利用支援加算"]
[null,null," 在宅時生活支援サービス加算"]
[null,null," 社会生活支援特別加算"]
[null,null," 地域共同加算"]
[null,null," ピアサポート実施加算"]
[null,null," 福祉・介護職員処遇改善加算Ⅰ・Ⅱ・Ⅲ"]
[null,null," 福祉・介護職員処遇改善特別加算"]
[null,null," 福祉・介護職員等特定処遇改善加算Ⅰ・Ⅱ"]
[null,null," 福祉・介護職員等ベースアップ等加算"]
[null," 就労定着支援"," 定着支援連携促進加算"]
[null,null," 初期加算"]
[null,null," 就労定着実施体制加算"]
[null,null," 職場適応援助養成研修狩猟者配置体制加算"]
[null,null," 利用者負担上限管理加算"]
[null," 自立生活援助"," 福祉専門職員配置等加算Ⅰ・Ⅱ・Ⅲ"]
[null,null," ピアサポート体制加算"]
[null,null," 初回加算"]
[null,null," 同行支援加算（2回以下、3回、4回以下）"]
[null,null," 緊急時支援加算Ⅰ・Ⅱ"]
[null,null," 利用者負担上限額管理加算"]
[null,null," 日常生活支援情報提供加算"]
[null,null," 居住支援連携体制加算"]
[null,null," 地域居住支援体制強化推進加算"]
[null," 施設入所支援"," 夜勤職員配置体制加算"]
[null,null," 重度障害者支援加算Ⅰ・Ⅱ"]
[null,null," 夜間看護体制加算"]
[null,null," 視覚・聴覚言語障害者支援体制加算"]
[null,null," 入所時特別支援加算"]
[null,null," 入院・外泊時加算Ⅰ・Ⅱ"]
[null,null," 入院時支援特別加算"]
[null,null," 地域移行加算"]
[null,null," 体験宿泊加算"]
[null,null," 地域生活移行個別支援特別加算Ⅰ・Ⅱ"]
[null,null," 栄養マネジメント加算"]
[null,null," 経口移行加算"]
[null,null," 経口維持加算Ⅰ・Ⅱ"]
[null,null," 口腔衛生管理体制加算Ⅰ・Ⅱ"]
[null,null," 口腔衛生管理加算"]
[null,null," 療養食加算"]
[null,null," 福祉・介護職員処遇改善加算Ⅰ・Ⅱ・Ⅲ"]
[null,null," 福祉・介護職員処遇改善特別加算"]
[null,null," 福祉・介護職員等特定処遇改善加算Ⅰ・Ⅱ"]
[null,null," 福祉・介護職員等ベースアップ等加算"]
[null," 共同生活援助"," 福祉専門職員配置等加算Ⅰ・Ⅱ・Ⅲ"]
[null,null," 視覚・聴覚言語障害者支援体制加算"]
[null,null," 看護職員配置加算"]
[null,null," 夜間支援等体制加算Ⅰ・Ⅱ・Ⅲ・Ⅳ・Ⅴ・Ⅵ"]
[null,null," 夜間職員加配加算"]
[null,null," 重度障害者支援加算Ⅰ・Ⅱ"]
[null,null," 医療的ケア対応支援加算"]
[null,null," 日中支援加算Ⅰ・Ⅱ"]
[null,null," 自立生活支援加算"]
[null,null," 入院時支援宅別加算（3日以上7日未満、7日以上）"]
[null,null," 長期入院時支援特別加算"]
[null,null," 帰宅時支援加算"]
[null,null," 長期帰宅時支援加算"]
[null,null," 地域生活移行個別支援特別加算"]
[null,null," 精神障害者地域移行特別加算"]
[null,null," 強度行動障害者地域移行特別加算"]
[null,null," 強度行動障害者体験利用加算"]
[null,null," 医療連携体制加算Ⅰ・Ⅱ・Ⅲ・Ⅳ・Ⅴ・Ⅵ・Ⅶ"]
[null,null," 通勤者生活支援加算"]
[null,null," 福祉・介護職員処遇改善加算Ⅰ・Ⅱ・Ⅲ"]
[null,null," 福祉・介護職員処遇改善特別加算"]
[null,null," 福祉・介護職員等特定処遇改善加算Ⅰ・Ⅱ"]
[null,null," 福祉・介護職員等ベースアップ等加算"]

{"sheet":"DB","index":4,"n_rows":155,"n_cols":7,"rows_kept":155,"hidden":true}
[]
[]
[]
[]
[]
[{"$nulls":4},"サービス名","参照座標"]
[]
[{"$nulls":4},"生活介護","E21:E50"]
[{"$nulls":4},"自立訓練（機能訓練）","F21:F40"]
[{"$nulls":4},"自立訓練（生活訓練）","G21:G52"]
[{"$nulls":4},"就労移行支援","E56:E87"]
[null,"北海道",null,null,"就労継続支援（A型）","F56:F89"]
[null,"青森県",null,null,"就労継続支援（B型）","G56:G95"]
[null,"岩手県",null,null,"就労定着支援","E99:E104"]
[null,"宮城県",null,null,"自立生活援助","F99:F111"]
[null,"秋田県",null,null,"施設入所支援","G99:G127"]
[null,"山形県",null,null,"共同生活援助","E114:E155"]
[null,"福島県"]
[null,"茨城県"]
[null,"栃木県",null,null,"生活介護","自立訓練（機能訓練）","自立訓練（生活訓練）"]
[null,"群馬県"]
[null,"埼玉県",null,null,"人員配置体制加算Ⅰ","福祉専門職員配置等加算Ⅰ","福祉専門職員配置等加算Ⅰ"]
[null,"千葉県",null,null,"人員配置体制加算Ⅱ","福祉専門職員配置等加算Ⅱ","福祉専門職員配置等加算Ⅱ"]
[null,"東京都",null,null,"人員配置体制加算Ⅲ","福祉専門職員配置等加算Ⅲ","福祉専門職員配置等加算Ⅲ"]
[null,"神奈川県",null,null,"福祉専門職員配置等加算Ⅰ","視覚・聴覚言語障害者支援体制加算","視覚・聴覚言語障害者支援体制加算"]
[null,"新潟県",null,null,"福祉専門職員配置等加算Ⅱ","初期加算","初期加算"]
[null,"富山県",null,null,"福祉専門職員配置等加算Ⅲ","欠席時対応加算","欠席時対応加算"]
[null,"石川県",null,null,"常勤看護職員等配置加算Ⅰ","リハビリテーション加算","医療連携体制加算Ⅰ"]
[null,"福井県",null,null,"常勤看護職員等配置加算Ⅱ","利用者負担上限額管理加算","医療連携体制加算Ⅱ"]
[null,"山梨県",null,null,"常勤看護職員等配置加算Ⅲ","食事提供体制加算","医療連携体制加算Ⅲ"]
[null,"長野県",null,null,"視覚・聴覚言語障害者支援体制加算","送迎加算","医療連携体制加算Ⅳ"]
[null,"岐阜県",null,null,"初期加算","障害福祉サービスの体験利用支援加算","医療連携体制加算Ⅴ"]
[null,"静岡県",null,null,"訪問支援特別加算（1時間未満／1時間以上）","社会生活支援特別加算","医療連携体制加算Ⅵ"]
[null,"愛知県",null,null,"欠席時対応加算","福祉・介護職員処遇改善加算Ⅰ","個別計画訓練支援加算"]
[null,"三重県",null,null,"重度障害者支援加算Ⅰ","福祉・介護職員処遇改善加算Ⅱ","短期滞在加算Ⅰ"]
[null,"滋賀県",null,null,"重度障害者支援加算Ⅱ","福祉・介護職員処遇改善加算Ⅲ","短期滞在加算Ⅱ"]
[null,"京都府",null,null,"リハビリテーション加算","福祉・介護職員処遇改善特別加算","障害者退院支援施設加算Ⅰ"]
[null,"大阪府",null,null,"利用者負担上限額管理加算","福祉・介護職員等特定処遇改善加算Ⅰ","障害者退院支援施設加算Ⅱ"]
[null,"兵庫県",null,null,"食事提供体制加算","福祉・介護職員等特定処遇改善加算Ⅱ","利用者負担上限額管理加算"]
[null,"奈良県",null,null,"延長支援加算（1時間未満／1時間以上）","福祉・介護職員等ベースアップ等加算","食事提供体制加算"]
[null,"和歌山県",null,null,"送迎加算",null,"看護職員配置加算"]
[null,"鳥取県",null,null,"障害福祉サービスの体験利用支援加算",null,"送迎加算"]
[null,"島根県",null,null,"就労移行支援体制加算",null,"障害福祉サービスの体験利用支援加算"]
[null,"岡山県",null,null,"福祉・介護職員処遇改善加算Ⅰ",null,"社会生活支援特別加算"]
[null,"広島県",null,null,"福祉・介護職員処遇改善加算Ⅱ",null,"就労移行支援体制加算"]
[null,"山口県",null,null,"福祉・介護職員処遇改善加算Ⅲ",null,"福祉・介護職員処遇改善加算Ⅰ"]
[null,"徳島県",null,null,"福祉・介護職員処遇改善特別加算",null,"福祉・介護職員処遇改善加算Ⅱ"]
[null,"香川県",null,null,"福祉・介護職員等特定処遇改善加算Ⅰ",null,"福祉・介護職員処遇改善加算Ⅲ"]
[null,"愛媛県",null,null,"福祉・介護職員等特定処遇改善加算Ⅱ",null,"福祉・介護職員処遇改善特別加算"]
[null,"高知県",null,null,"福祉・介護職員等ベースアップ等加算",null,"福祉・介護職員等特定処遇改善加算Ⅰ"]
[null,"福岡県",{"$nulls":4},"福祉・介護職員等特定処遇改善加算Ⅱ"]
[null,"佐賀県",{"$nulls":4},"福祉・介護職員等ベースアップ等加算"]
[null,"長崎県"]
[null,"熊本県"]
[null,"大分県",null,null,"就労移行支援","就労継続支援（A型）","就労継続支援（B型）"]
[null,"宮崎県"]
[null,"鹿児島県",null,null,"福祉専門職員配置等加算Ⅰ","福祉専門職員配置等加算Ⅰ","福祉専門職員配置等加算Ⅰ"]
[null,"沖縄県",null,null,"福祉専門職員配置等加算Ⅱ","福祉専門職員配置等加算Ⅱ","福祉専門職員配置等加算Ⅱ"]
[{"$nulls":4},"就労支援関係研修修了加算","福祉専門職員配置等加算Ⅲ","福祉専門職員配置等加算Ⅲ"]
[{"$nulls":4},"視覚・聴覚言語障害者支援体制加算","視覚・聴覚言語障害者支援体制加算","視覚・聴覚言語障害者支援体制加算"]
[{"$nulls":4},"初期加算","重度者支援体制加算Ⅰ","重度者支援体制加算Ⅰ"]
[{"$nulls":4},"訪問支援特別加算（1時間未満／1時間以上）","重度者支援体制加算Ⅱ","重度者支援体制加算Ⅱ"]
[{"$nulls":4},"欠席時対応加算","重度者支援体制加算Ⅲ","重度者支援体制加算Ⅲ"]
[{"$nulls":4},"医療連携体制加算Ⅰ","初期加算","初期加算"]
[{"$nulls":4},"医療連携体制加算Ⅱ","訪問支援特別加算（1時間未満／1時間以上）","訪問支援特別加算（1時間未満／1時間以上）"]
[{"$nulls":4},"医療連携体制加算Ⅲ","欠席時対応加算","欠席時対応加算"]
[{"$nulls":4},"医療連携体制加算Ⅳ","就労移行支援体制加算Ⅰ","就労移行支援体制加算Ⅰ"]
[{"$nulls":4},"医療連携体制加算Ⅴ","就労移行支援体制加算Ⅱ","就労移行支援体制加算Ⅱ"]
[{"$nulls":4},"医療連携体制加算Ⅵ","就労移行連携加算","就労移行支援体制加算Ⅲ"]
[{"$nulls":4},"精神障害者退院支援施設加算Ⅰ","賃金向上達成指導員配置加算","就労移行支援体制加算Ⅳ"]
[{"$nulls":4},"精神障害者退院支援施設加算Ⅱ","医療連携体制加算Ⅰ","就労移行連携加算"]
[{"$nulls":4},"利用者負担上限額管理加算","医療連携体制加算Ⅱ","目的工賃達成指導員配置加算"]
[{"$nulls":4},"食事提供体制加算","医療連携体制加算Ⅲ","目標工賃達成加算Ⅰ"]
[{"$nulls":4},"移行準備支援体制加算","医療連携体制加算Ⅳ","目標工賃達成加算Ⅱ"]
[{"$nulls":4},"送迎加算","医療連携体制加算Ⅴ","医療連携体制加算Ⅰ"]
[{"$nulls":4},"障害福祉サービスの体験利用支援加算","医療連携体制加算Ⅵ","医療連携体制加算Ⅱ"]
[{"$nulls":4},"通勤訓練加算","利用者負担上限額管理加算","医療連携体制加算Ⅲ"]
[{"$nulls":4},"在宅時生活支援サービス加算","食事提供体制加算","医療連携体制加算Ⅳ"]
[{"$nulls":4},"社会生活支援特別加算","送迎加算","医療連携体制加算Ⅴ"]
[{"$nulls":4},"支援計画会議実施加算","障害福祉サービスの体験利用支援加算","医療連携体制加算Ⅵ"]
[{"$nulls":4},"福祉・介護職員処遇改善加算Ⅰ","在宅時生活支援サービス加算","利用者負担上限額管理加算"]
[{"$nulls":4},"福祉・介護職員処遇改善加算Ⅱ","社会生活支援特別加算","食事提供体制加算"]
[{"$nulls":4},"福祉・介護職員処遇改善加算Ⅲ","福祉・介護職員処遇改善加算Ⅰ","送迎加算"]
[{"$nulls":4},"福祉・介護職員処遇改善特別加算","福祉・介護職員処遇改善加算Ⅱ","障害福祉サービスの体験利用支援加算"]
[{"$nulls":4},"福祉・介護職員等特定処遇改善加算Ⅰ","福祉・介護職員処遇改善加算Ⅲ","在宅時生活支援サービス加算"]
[{"$nulls":4},"福祉・介護職員等特定処遇改善加算Ⅱ","福祉・介護職員処遇改善特別加算","社会生活支援特別加算"]
[{"$nulls":4},"福祉・介護職員等ベースアップ等加算","福祉・介護職員等特定処遇改善加算Ⅰ","地域共同加算"]
[{"$nulls":5},"福祉・介護職員等特定処遇改善加算Ⅱ","ピアサポート実施加算"]
[{"$nulls":5},"福祉・介護職員等ベースアップ等加算","福祉・介護職員処遇改善加算Ⅰ"]
[{"$nulls":6},"福祉・介護職員処遇改善加算Ⅱ"]
[{"$nulls":6},"福祉・介護職員処遇改善加算Ⅲ"]
[{"$nulls":6},"福祉・介護職員処遇改善特別加算"]
[{"$nulls":6},"福祉・介護職員等特定処遇改善加算Ⅰ"]
[{"$nulls":6},"福祉・介護職員等特定処遇改善加算Ⅱ"]
[{"$nulls":6},"福祉・介護職員等ベースアップ等加算"]
[]
[]
[{"$nulls":4}," 就労定着支援"," 自立生活援助"," 施設入所支援"]
[]
[{"$nulls":4},"定着支援連携促進加算","福祉専門職員配置等加算Ⅰ","夜勤職員配置体制加算"]
[{"$nulls":4},"初期加算","福祉専門職員配置等加算Ⅱ","重度障害者支援加算Ⅰ"]
[{"$nulls":4},"就労定着実施体制加算","福祉専門職員配置等加算Ⅲ","重度障害者支援加算Ⅱ"]
[{"$nulls":4},"職場適応援助養成研修狩猟者配置体制加算","ピアサポート体制加算","夜間看護体制加算"]
[{"$nulls":4},"利用者負担上限管理加算","初回加算","視覚・聴覚言語障害者支援体制加算"]
[{"$nulls":5},"同行支援加算（2回以下、3回、4回以下）","入所時特別支援加算"]
[{"$nulls":5},"緊急時支援加算Ⅰ","入院・外泊時加算Ⅰ"]
[{"$nulls":5},"緊急時支援加算Ⅱ","入院・外泊時加算Ⅱ"]
[{"$nulls":5},"利用者負担上限額管理加算","入院時支援特別加算"]
[{"$nulls":5},"日常生活支援情報提供加算","地域移行加算"]
[{"$nulls":5},"居住支援連携体制加算","体験宿泊加算"]
[{"$nulls":5},"地域居住支援体制強化推進加算","地域生活移行個別支援特別加算Ⅰ"]
[{"$nulls":6},"地域生活移行個別支援特別加算Ⅱ"]
[{"$nulls":4}," 共同生活援助",null,"栄養マネジメント加算"]
[{"$nulls":6},"経口移行加算"]
[{"$nulls":4},"福祉専門職員配置等加算Ⅰ",null,"経口維持加算Ⅰ"]
[{"$nulls":4},"福祉専門職員配置等加算Ⅱ",null,"経口維持加算Ⅱ"]
[{"$nulls":4},"福祉専門職員配置等加算Ⅲ",null,"口腔衛生管理体制加算Ⅰ"]
[{"$nulls":4},"視覚・聴覚言語障害者支援体制加算",null,"口腔衛生管理体制加算Ⅱ"]
[{"$nulls":4},"看護職員配置加算",null,"口腔衛生管理加算"]
[{"$nulls":4},"夜間支援等体制加算Ⅰ",null,"療養食加算"]
[{"$nulls":4},"夜間支援等体制加算Ⅱ",null,"福祉・介護職員処遇改善加算Ⅰ"]
[{"$nulls":4},"夜間支援等体制加算Ⅲ",null,"福祉・介護職員処遇改善加算Ⅱ"]
[{"$nulls":4},"夜間支援等体制加算Ⅳ",null,"福祉・介護職員処遇改善加算Ⅲ"]
[{"$nulls":4},"夜間支援等体制加算Ⅴ",null,"福祉・介護職員処遇改善特別加算"]
[{"$nulls":4},"夜間支援等体制加算Ⅵ",null,"福祉・介護職員等特定処遇改善加算Ⅰ"]
[{"$nulls":4},"夜間職員加配加算",null,"福祉・介護職員等特定処遇改善加算Ⅱ"]
[{"$nulls":4},"重度障害者支援加算Ⅰ",null,"福祉・介護職員等ベースアップ等加算"]
[{"$nulls":4},"重度障害者支援加算Ⅱ"]
[{"$nulls":4},"医療的ケア対応支援加算"]
[{"$nulls":4},"日中支援加算Ⅰ"]
[{"$nulls":4},"日中支援加算Ⅱ"]
[{"$nulls":4},"自立生活支援加算"]
[{"$nulls":4},"入院時支援宅別加算（3日以上7日未満、7日以上）"]
[{"$nulls":4},"長期入院時支援特別加算"]
[{"$nulls":4},"帰宅時支援加算"]
[{"$nulls":4},"長期帰宅時支援加算"]
[{"$nulls":4},"地域生活移行個別支援特別加算"]
[{"$nulls":4},"精神障害者地域移行特別加算"]
[{"$nulls":4},"強度行動障害者地域移行特別加算"]
[{"$nulls":4},"強度行動障害者体験利用加算"]
[{"$nulls":4},"医療連携体制加算Ⅰ"]
[{"$nulls":4},"医療連携体制加算Ⅱ"]
[{"$nulls":4},"医療連携体制加算Ⅲ"]
[{"$nulls":4},"医療連携体制加算Ⅳ"]
[{"$nulls":4},"医療連携体制加算Ⅴ"]
[{"$nulls":4},"医療連携体制加算Ⅵ"]
[{"$nulls":4},"医療連携体制加算Ⅶ"]
[{"$nulls":4},"通勤者生活支援加算"]
[{"$nulls":4},"福祉・介護職員処遇改善加算Ⅰ"]
[{"$nulls":4},"福祉・介護職員処遇改善加算Ⅱ"]
[{"$nulls":4},"福祉・介護職員処遇改善加算Ⅲ"]
[{"$nulls":4},"福祉・介護職員処遇改善特別加算"]
[{"$nulls":4},"福祉・介護職員等特定処遇改善加算Ⅰ"]
[{"$nulls":4},"福祉・介護職員等特定処遇改善加算Ⅱ"]
[{"$nulls":4},"福祉・介護職員等ベースアップ等加算"]